[Event "Early-Titled-Tuesday-Blitz-March-05-2024"]
[Site "Chess.com"]
[Date "2024.03.05"]
[Round "7"]
[White "Mariia89"]
[Black "BashirliSaadat"]
[Result "0-1"]
[WhiteElo "2256"]
[BlackElo "2355"]
[TimeControl "180+1"]
[EndTime "9:19:48 PST"]
[Termination "BashirliSaadat won by checkmate"]

1. d4 {[%clk 0:02:59.8]} 1... Nf6 {[%clk 0:02:59.3]} 2. Nf3 {[%clk 0:03:00.4]}
2... g6 {[%clk 0:02:59.7]} 3. c4 {[%clk 0:03:00.3]} 3... Bg7 {[%clk 0:03:00.2]}
4. Nc3 {[%clk 0:03:01.2]} 4... O-O {[%clk 0:03:00.7]} 5. e4 {[%clk 0:03:01.7]}
5... d6 {[%clk 0:03:01]} 6. Be2 {[%clk 0:03:02.2]} 6... Nbd7 {[%clk 0:03:01.5]}
7. O-O {[%clk 0:03:02.6]} 7... c5 {[%clk 0:03:02.1]} 8. Re1 {[%clk 0:03:02.9]}
8... cxd4 {[%clk 0:03:01.8]} 9. Nxd4 {[%clk 0:03:03.8]} 9... Nc5 {[%clk
0:03:02.1]} 10. Bf1 {[%clk 0:03:04.2]} 10... Bd7 {[%clk 0:03:01.8]} 11. f3
{[%clk 0:03:03.7]} 11... a5 {[%clk 0:03:00.9]} 12. Be3 {[%clk 0:03:03.5]} 12...
a4 {[%clk 0:03:00.7]} 13. Rb1 {[%clk 0:02:57.4]} 13... Qa5 {[%clk 0:02:56]} 14.
Nd5 {[%clk 0:02:49.4]} 14... Nxd5 {[%clk 0:02:55.3]} 15. exd5 {[%clk 0:02:50.3]}
15... Rfe8 {[%clk 0:02:42.3]} 16. Kh1 {[%clk 0:02:49.4]} 16... Qc7 {[%clk
0:02:36.9]} 17. b4 {[%clk 0:02:47.4]} 17... axb3 {[%clk 0:02:36.7]} 18. axb3
{[%clk 0:02:48.3]} 18... Ra2 {[%clk 0:02:35]} 19. b4 {[%clk 0:02:46.6]} 19...
Ba4 {[%clk 0:02:30.7]} 20. Nb5 {[%clk 0:02:19.2]} 20... Qd7 {[%clk 0:02:17.7]}
21. Qc1 {[%clk 0:01:55.3]} 21... Nb3 {[%clk 0:02:17.6]} 22. Qd1 {[%clk 0:01:31]}
22... Nd4 {[%clk 0:02:01.5]} 23. Qc1 {[%clk 0:01:23.1]} 23... Nxb5 {[%clk
0:01:59]} 24. cxb5 {[%clk 0:01:15.6]} 24... Rc8 {[%clk 0:01:33.7]} 25. Bc5
{[%clk 0:00:55.1]} 25... dxc5 {[%clk 0:01:29.2]} 26. bxc5 {[%clk 0:00:51.2]}
26... Bc2 {[%clk 0:01:21.4]} 27. c6 {[%clk 0:00:45.9]} 27... Qxd5 {[%clk
0:01:17.5]} 28. Rb4 {[%clk 0:00:34.6]} 28... Bc3 {[%clk 0:01:15]} 29. Bc4 {[%clk
0:00:31.2]} 29... Qf5 {[%clk 0:01:00.3]} 30. Bxa2 {[%clk 0:00:29.1]} 30... Bxb4
{[%clk 0:00:59.4]} 31. cxb7 {[%clk 0:00:21.3]} 31... Rb8 {[%clk 0:00:50.8]} 32.
Re2 {[%clk 0:00:21.6]} 32... Bd3 {[%clk 0:00:48]} 33. Qc7 {[%clk 0:00:19]} 33...
Bd6 {[%clk 0:00:28.6]} 34. Qc6 {[%clk 0:00:06.8]} 34... Bxe2 {[%clk 0:00:24.2]}
35. h3 {[%clk 0:00:06.6]} 35... Bxb5 {[%clk 0:00:21.5]} 36. Qc3 {[%clk
0:00:03.7]} 36... Qe5 {[%clk 0:00:16.7]} 37. Qb3 {[%clk 0:00:03.5]} 37... Qh2#
{[%clk 0:00:16]} 0-1

[Event "Early-Titled-Tuesday-Blitz-March-05-2024"]
[Site "Chess.com"]
[Date "2024.03.05"]
[Round "7"]
[White "martinmena"]
[Black "HelvertHernandez"]
[Result "1-0"]
[WhiteElo "2298"]
[BlackElo "2020"]
[TimeControl "180+1"]
[EndTime "9:19:51 PST"]
[Termination "martinmena won by checkmate"]

1. c4 {[%clk 0:03:00.9]} 1... Nf6 {[%clk 0:02:58.2]} 2. g3 {[%clk 0:02:53.3]}
2... c6 {[%clk 0:02:57]} 3. Bg2 {[%clk 0:02:53.8]} 3... d6 {[%clk 0:02:52.7]} 4.
Nf3 {[%clk 0:02:54.2]} 4... Bg4 {[%clk 0:02:52.1]} 5. O-O {[%clk 0:02:52.1]}
5... Nbd7 {[%clk 0:02:51.5]} 6. h3 {[%clk 0:02:52.3]} 6... Bxf3 {[%clk
0:02:50.8]} 7. Bxf3 {[%clk 0:02:53.2]} 7... e5 {[%clk 0:02:50.1]} 8. Nc3 {[%clk
0:02:50.8]} 8... Be7 {[%clk 0:02:49.3]} 9. d3 {[%clk 0:02:50.1]} 9... O-O {[%clk
0:02:49.2]} 10. e4 {[%clk 0:02:48]} 10... Nb6 {[%clk 0:02:44.9]} 11. Be3 {[%clk
0:02:46.8]} 11... d5 {[%clk 0:02:31.9]} 12. exd5 {[%clk 0:02:38.8]} 12... cxd5
{[%clk 0:02:31.7]} 13. Bxb6 {[%clk 0:02:37.7]} 13... Qxb6 {[%clk 0:02:29.8]} 14.
Nxd5 {[%clk 0:02:38.2]} 14... Nxd5 {[%clk 0:02:26.5]} 15. Bxd5 {[%clk
0:02:39.1]} 15... Qxb2 {[%clk 0:02:24.9]} 16. Rb1 {[%clk 0:02:38.8]} 16... Qxa2
{[%clk 0:02:24.1]} 17. Rxb7 {[%clk 0:02:39.4]} 17... Qa3 {[%clk 0:02:16.5]} 18.
Qe2 {[%clk 0:02:24.1]} 18... Qd6 {[%clk 0:02:01.8]} 19. Rfb1 {[%clk 0:02:10]}
19... Rab8 {[%clk 0:01:51.6]} 20. Qe3 {[%clk 0:01:55.4]} 20... Rxb7 {[%clk
0:01:45]} 21. Rxb7 {[%clk 0:01:56.3]} 21... a5 {[%clk 0:01:38.1]} 22. Qa7 {[%clk
0:01:52.3]} 22... Bd8 {[%clk 0:01:23.4]} 23. Rxf7 {[%clk 0:01:48.8]} 23... Kh8
{[%clk 0:01:16.9]} 24. Rxg7 {[%clk 0:01:42.1]} 24... Qh6 {[%clk 0:01:03.5]} 25.
Rf7 {[%clk 0:01:37.6]} 25... Rg8 {[%clk 0:00:57.8]} 26. Be4 {[%clk 0:01:26.8]}
26... Rxg3+ {[%clk 0:00:52.5]} 27. Bg2 {[%clk 0:00:45.6]} 27... Rxd3 {[%clk
0:00:40.8]} 28. Rd7 {[%clk 0:00:09.4]} 28... Qc1+ {[%clk 0:00:36]} 29. Bf1
{[%clk 0:00:09.9]} 29... Qg5+ {[%clk 0:00:30.8]} 30. Kh1 {[%clk 0:00:10.1]}
30... Rf3 {[%clk 0:00:16.3]} 31. Qa8 {[%clk 0:00:07.1]} 31... Rf8 {[%clk
0:00:13.9]} 32. Qg2 {[%clk 0:00:02.8]} 32... Qxg2+ {[%clk 0:00:12.4]} 33. Kxg2
{[%clk 0:00:03.7]} 33... Kg8 {[%clk 0:00:11.8]} 34. Bd3 {[%clk 0:00:03.8]} 34...
h6 {[%clk 0:00:09.2]} 35. Bh7+ {[%clk 0:00:03.4]} 35... Kh8 {[%clk 0:00:09.3]}
36. Bc2 {[%clk 0:00:03.9]} 36... Rg8+ {[%clk 0:00:09.1]} 37. Kf3 {[%clk
0:00:04]} 37... Bb6 {[%clk 0:00:08.2]} 38. Rh7# {[%clk 0:00:03.8]} 1-0

[Event "Early-Titled-Tuesday-Blitz-March-05-2024"]
[Site "Chess.com"]
[Date "2024.03.05"]
[Round "7"]
[White "Zq1"]
[Black "DvaHrasta"]
[Result "1-0"]
[WhiteElo "2633"]
[BlackElo "2459"]
[TimeControl "180+1"]
[EndTime "9:19:52 PST"]
[Termination "Zq1 won on time"]

1. d4 {[%clk 0:02:47.4]} 1... Nf6 {[%clk 0:02:59.4]} 2. c4 {[%clk 0:02:46.5]}
2... e6 {[%clk 0:02:59.5]} 3. Nf3 {[%clk 0:02:44.9]} 3... Bb4+ {[%clk
0:02:54.7]} 4. Bd2 {[%clk 0:02:44.2]} 4... Be7 {[%clk 0:02:54.7]} 5. g3 {[%clk
0:02:43.5]} 5... b6 {[%clk 0:02:52.9]} 6. Bg2 {[%clk 0:02:43.3]} 6... Bb7 {[%clk
0:02:53]} 7. O-O {[%clk 0:02:43.1]} 7... O-O {[%clk 0:02:53]} 8. Nc3 {[%clk
0:02:40.5]} 8... d5 {[%clk 0:02:52.7]} 9. cxd5 {[%clk 0:02:39.2]} 9... exd5
{[%clk 0:02:52]} 10. Bf4 {[%clk 0:02:35.1]} 10... c5 {[%clk 0:02:45]} 11. dxc5
{[%clk 0:02:34.1]} 11... bxc5 {[%clk 0:02:44.6]} 12. Qb3 {[%clk 0:02:33.9]}
12... Qb6 {[%clk 0:02:38.1]} 13. Rfd1 {[%clk 0:02:29.3]} 13... d4 {[%clk
0:02:27.3]} 14. Na4 {[%clk 0:02:26.1]} 14... Qxb3 {[%clk 0:02:19.8]} 15. axb3
{[%clk 0:02:25.4]} 15... Nbd7 {[%clk 0:02:16.8]} 16. Nxd4 {[%clk 0:02:11.9]}
16... Bxg2 {[%clk 0:02:01.7]} 17. Nf5 {[%clk 0:02:10.2]} 17... Be4 {[%clk
0:01:49.2]} 18. Nxe7+ {[%clk 0:02:08.6]} 18... Kh8 {[%clk 0:01:49.3]} 19. Rac1
{[%clk 0:02:01.5]} 19... Rfe8 {[%clk 0:01:45.9]} 20. Bd6 {[%clk 0:02:01.1]}
20... Rad8 {[%clk 0:01:02.3]} 21. f3 {[%clk 0:01:54.6]} 21... Ba8 {[%clk
0:00:53.6]} 22. e4 {[%clk 0:01:52.9]} 22... g6 {[%clk 0:00:35.6]} 23. Nxc5
{[%clk 0:01:45.8]} 23... Nxc5 {[%clk 0:00:34.9]} 24. Bxc5 {[%clk 0:01:46]} 24...
Nd7 {[%clk 0:00:19.3]} 25. Bb4 {[%clk 0:01:30.3]} 25... f6 {[%clk 0:00:15.8]}
26. Rc7 {[%clk 0:01:25]} 26... Ne5 {[%clk 0:00:15.1]} 27. Rxd8 {[%clk
0:01:20.4]} 27... Rxd8 {[%clk 0:00:15.1]} 28. Kg2 {[%clk 0:01:00.8]} 28... g5
{[%clk 0:00:13.9]} 29. Bc3 {[%clk 0:00:53.6]} 29... g4 {[%clk 0:00:14.1]} 30.
Bxe5 {[%clk 0:00:41.5]} 30... fxe5 {[%clk 0:00:11.3]} 31. Nd5 {[%clk 0:00:38.2]}
31... Bxd5 {[%clk 0:00:10.3]} 32. exd5 {[%clk 0:00:37.7]} 32... Rxd5 {[%clk
0:00:10.4]} 33. fxg4 {[%clk 0:00:33.9]} 33... Rd2+ {[%clk 0:00:10.3]} 34. Kh3
{[%clk 0:00:33.1]} 34... Rxb2 {[%clk 0:00:10.5]} 35. Rxa7 {[%clk 0:00:32.3]}
35... Rxb3 {[%clk 0:00:10.1]} 36. Re7 {[%clk 0:00:32]} 36... Re3 {[%clk
0:00:09]} 37. g5 {[%clk 0:00:31.5]} 37... Re2 {[%clk 0:00:08.4]} 38. g4 {[%clk
0:00:29.8]} 38... Kg8 {[%clk 0:00:07.6]} 39. Kg3 {[%clk 0:00:28.9]} 39... Re3+
{[%clk 0:00:07.6]} 40. Kh4 {[%clk 0:00:28.6]} 40... Re2 {[%clk 0:00:07]} 41. h3
{[%clk 0:00:28.3]} 41... Re3 {[%clk 0:00:07.4]} 42. Ra7 {[%clk 0:00:20.9]} 42...
e4 {[%clk 0:00:06.8]} 43. Re7 {[%clk 0:00:20.5]} 43... Kh8 {[%clk 0:00:06.9]}
44. g6 {[%clk 0:00:18.2]} 44... hxg6 {[%clk 0:00:06.4]} 45. Kg5 {[%clk
0:00:18.3]} 45... Rxh3 {[%clk 0:00:05.7]} 46. Kxg6 {[%clk 0:00:18.5]} 1-0

[Event "Early-Titled-Tuesday-Blitz-March-05-2024"]
[Site "Chess.com"]
[Date "2024.03.05"]
[Round "7"]
[White "Szparu"]
[Black "Indianlad"]
[Result "0-1"]
[WhiteElo "2780"]
[BlackElo "3025"]
[TimeControl "180+1"]
[EndTime "9:19:54 PST"]
[Termination "Indianlad won on time"]

1. e4 {[%clk 0:03:00.9]} 1... g6 {[%clk 0:02:58.7]} 2. d4 {[%clk 0:03:01]} 2...
Bg7 {[%clk 0:02:58.4]} 3. Nf3 {[%clk 0:03:01.6]} 3... d6 {[%clk 0:02:58.3]} 4.
Bd3 {[%clk 0:03:01.6]} 4... Nc6 {[%clk 0:02:57.9]} 5. c3 {[%clk 0:03:02]} 5...
e5 {[%clk 0:02:57.6]} 6. h3 {[%clk 0:03:00.7]} 6... Nge7 {[%clk 0:02:54.3]} 7.
O-O {[%clk 0:02:53.2]} 7... O-O {[%clk 0:02:53.6]} 8. Be3 {[%clk 0:02:43]} 8...
h6 {[%clk 0:02:51.3]} 9. Nbd2 {[%clk 0:02:38.8]} 9... f5 {[%clk 0:02:51.2]} 10.
dxe5 {[%clk 0:02:38.8]} 10... dxe5 {[%clk 0:02:41.4]} 11. Bc4+ {[%clk
0:02:39.1]} 11... Kh8 {[%clk 0:02:41.2]} 12. exf5 {[%clk 0:02:34.4]} 12... gxf5
{[%clk 0:02:40.2]} 13. Bc5 {[%clk 0:02:30.3]} 13... b6 {[%clk 0:02:33.7]} 14.
Ba3 {[%clk 0:02:25.9]} 14... Na5 {[%clk 0:02:33]} 15. Nh4 {[%clk 0:02:15.1]}
15... c5 {[%clk 0:02:33.2]} 16. Qe2 {[%clk 0:02:00.9]} 16... Nxc4 {[%clk
0:02:28.6]} 17. Nxc4 {[%clk 0:02:00.8]} 17... Qd5 {[%clk 0:02:29.3]} 18. Rad1
{[%clk 0:01:57.3]} 18... Qe4 {[%clk 0:02:12.7]} 19. Qxe4 {[%clk 0:01:52.2]}
19... fxe4 {[%clk 0:02:13.6]} 20. Rfe1 {[%clk 0:01:49.2]} 20... Be6 {[%clk
0:02:00.6]} 21. Rxe4 {[%clk 0:01:18.4]} 21... Rf4 {[%clk 0:01:28.2]} 22. Rxf4
{[%clk 0:00:43.5]} 22... exf4 {[%clk 0:01:29.1]} 23. b3 {[%clk 0:00:44.1]} 23...
Bxc3 {[%clk 0:01:16.5]} 24. Bc1 {[%clk 0:00:44.2]} 24... Bf6 {[%clk 0:01:06]}
25. Nf3 {[%clk 0:00:37.1]} 25... Ng6 {[%clk 0:01:04.6]} 26. Rd6 {[%clk
0:00:36.1]} 26... Re8 {[%clk 0:01:05.3]} 27. Bb2 {[%clk 0:00:23.3]} 27... Bxb2
{[%clk 0:01:03.8]} 28. Nxb2 {[%clk 0:00:24.2]} 28... Kg7 {[%clk 0:01:04.4]} 29.
Nd3 {[%clk 0:00:24.2]} 29... Bf5 {[%clk 0:01:03.2]} 30. Rd5 {[%clk 0:00:20.7]}
30... Kf6 {[%clk 0:00:58.3]} 31. Nde1 {[%clk 0:00:05.3]} 31... Re2 {[%clk
0:00:53]} 32. Rd2 {[%clk 0:00:06.2]} 32... Rxd2 {[%clk 0:00:53]} 33. Nxd2 {[%clk
0:00:07.1]} 33... Ke5 {[%clk 0:00:52.3]} 34. Kf1 {[%clk 0:00:07.7]} 34... Kd4
{[%clk 0:00:52.4]} 35. Ke2 {[%clk 0:00:07.9]} 35... Kc3 {[%clk 0:00:52.8]} 36.
g3 {[%clk 0:00:07.5]} 36... fxg3 {[%clk 0:00:52.5]} 37. fxg3 {[%clk 0:00:07.9]}
37... Bxh3 {[%clk 0:00:53.1]} 38. Ke3 {[%clk 0:00:07.9]} 38... Bf5 {[%clk
0:00:50.8]} 39. Nef3 {[%clk 0:00:06.5]} 39... b5 {[%clk 0:00:51.1]} 40. Ne4+
{[%clk 0:00:03.7]} 40... Kb4 {[%clk 0:00:41]} 41. Nd6 {[%clk 0:00:03.6]} 41...
Be6 {[%clk 0:00:40.4]} 42. Nd2 {[%clk 0:00:03.4]} 42... a6 {[%clk 0:00:40.2]}
43. N2e4 {[%clk 0:00:03.5]} 43... Ne5 {[%clk 0:00:39.5]} 44. Kf4 {[%clk
0:00:03.6]} 44... Nd3+ {[%clk 0:00:39.3]} 45. Ke3 {[%clk 0:00:04.5]} 45... Nc1
{[%clk 0:00:39.7]} 46. Kf4 {[%clk 0:00:04]} 46... Nxa2 {[%clk 0:00:39.5]} 47.
Ke5 {[%clk 0:00:04.8]} 47... Bxb3 {[%clk 0:00:39.7]} 48. Nf5 {[%clk 0:00:03.5]}
48... c4 {[%clk 0:00:38.9]} 49. Nxh6 {[%clk 0:00:03.6]} 49... c3 {[%clk
0:00:39.7]} 0-1

[Event "Early-Titled-Tuesday-Blitz-March-05-2024"]
[Site "Chess.com"]
[Date "2024.03.05"]
[Round "7"]
[White "Antipov_Mikhail_Al"]
[Black "isaak2009"]
[Result "1-0"]
[WhiteElo "2940"]
[BlackElo "2763"]
[TimeControl "180+1"]
[EndTime "9:19:54 PST"]
[Termination "Antipov_Mikhail_Al won on time"]

1. e4 {[%clk 0:03:00.9]} 1... c5 {[%clk 0:02:59.1]} 2. Nf3 {[%clk 0:03:00.5]}
2... Nc6 {[%clk 0:02:59.3]} 3. Bb5 {[%clk 0:03:00.5]} 3... g6 {[%clk 0:02:59.2]}
4. Bxc6 {[%clk 0:02:59.2]} 4... bxc6 {[%clk 0:02:58.7]} 5. O-O {[%clk
0:02:58.8]} 5... Bg7 {[%clk 0:02:58.8]} 6. Re1 {[%clk 0:02:58.5]} 6... Nh6
{[%clk 0:02:58.5]} 7. h3 {[%clk 0:02:58.1]} 7... O-O {[%clk 0:02:58.3]} 8. c3
{[%clk 0:02:57.9]} 8... f5 {[%clk 0:02:58.7]} 9. e5 {[%clk 0:02:56.9]} 9... Nf7
{[%clk 0:02:59]} 10. d4 {[%clk 0:02:56.7]} 10... cxd4 {[%clk 0:02:59.9]} 11.
cxd4 {[%clk 0:02:57.5]} 11... Bb7 {[%clk 0:02:55.4]} 12. Nc3 {[%clk 0:02:47.5]}
12... c5 {[%clk 0:02:52.5]} 13. dxc5 {[%clk 0:02:48.4]} 13... Rc8 {[%clk
0:02:52.8]} 14. Be3 {[%clk 0:02:47.8]} 14... Bxf3 {[%clk 0:02:43.9]} 15. Qxf3
{[%clk 0:02:48.7]} 15... Nxe5 {[%clk 0:02:43.5]} 16. Qd1 {[%clk 0:02:46]} 16...
Nc6 {[%clk 0:02:12.1]} 17. Bf4 {[%clk 0:02:36.4]} 17... e5 {[%clk 0:01:59.4]}
18. Bh2 {[%clk 0:02:35.3]} 18... f4 {[%clk 0:01:54]} 19. Rc1 {[%clk 0:02:33.8]}
19... f3 {[%clk 0:01:51.6]} 20. gxf3 {[%clk 0:02:01.9]} 20... Nd4 {[%clk
0:01:46.8]} 21. f4 {[%clk 0:01:59.9]} 21... exf4 {[%clk 0:01:30.3]} 22. Ne4
{[%clk 0:01:51.3]} 22... Qh4 {[%clk 0:01:17.8]} 23. Qg4 {[%clk 0:00:35.2]} 23...
Qxg4+ {[%clk 0:01:16.7]} 24. hxg4 {[%clk 0:00:36.1]} 24... Nf3+ {[%clk
0:01:17.4]} 25. Kg2 {[%clk 0:00:36.4]} 25... Nxe1+ {[%clk 0:01:18.1]} 26. Rxe1
{[%clk 0:00:37.2]} 26... Bxb2 {[%clk 0:01:17.2]} 27. g5 {[%clk 0:00:33.6]} 27...
Rf5 {[%clk 0:01:08.9]} 28. Kf3 {[%clk 0:00:24.9]} 28... Rd5 {[%clk 0:00:49.1]}
29. Bxf4 {[%clk 0:00:20.8]} 29... Rf8 {[%clk 0:00:48.1]} 30. Kg4 {[%clk
0:00:21.1]} 30... Bg7 {[%clk 0:00:34.6]} 31. Bd6 {[%clk 0:00:18.5]} 31... Rff5
{[%clk 0:00:28.5]} 32. f4 {[%clk 0:00:16.9]} 32... h5+ {[%clk 0:00:23.2]} 33.
gxh6 {[%clk 0:00:08.7]} 33... Bxh6 {[%clk 0:00:23.2]} 34. Ng3 {[%clk 0:00:04.9]}
34... Rf7 {[%clk 0:00:18]} 35. Re8+ {[%clk 0:00:04.9]} 35... Kh7 {[%clk
0:00:18.3]} 36. Ne4 {[%clk 0:00:04.7]} 36... Rd4 {[%clk 0:00:17.8]} 37. Be5
{[%clk 0:00:04.5]} 37... Bg7 {[%clk 0:00:08.5]} 38. Ng5+ {[%clk 0:00:04.5]}
38... Kh6 {[%clk 0:00:08.1]} 39. Nxf7+ {[%clk 0:00:05.4]} 39... Kh7 {[%clk
0:00:07.9]} 40. Ng5+ {[%clk 0:00:03.9]} 40... Kh6 {[%clk 0:00:05.9]} 41. Re7
{[%clk 0:00:04.8]} 41... Rxf4+ {[%clk 0:00:01.6]} 42. Bxf4 {[%clk 0:00:05.7]}
1-0

[Event "Early-Titled-Tuesday-Blitz-March-05-2024"]
[Site "Chess.com"]
[Date "2024.03.05"]
[Round "7"]
[White "stolencandy13"]
[Black "Rikikits"]
[Result "0-1"]
[WhiteElo "2683"]
[BlackElo "2847"]
[TimeControl "180+1"]
[EndTime "9:19:54 PST"]
[Termination "Rikikits won by resignation"]

1. d4 {[%clk 0:03:00.9]} 1... d5 {[%clk 0:03:00]} 2. Bf4 {[%clk 0:03:00.6]} 2...
c5 {[%clk 0:02:57.6]} 3. e3 {[%clk 0:02:58.5]} 3... Nc6 {[%clk 0:02:57.8]} 4.
Nc3 {[%clk 0:02:57.2]} 4... a6 {[%clk 0:02:47.3]} 5. Nf3 {[%clk 0:02:53.5]} 5...
e6 {[%clk 0:02:40.6]} 6. Be2 {[%clk 0:02:52]} 6... Bd6 {[%clk 0:02:27.7]} 7.
Bxd6 {[%clk 0:02:44.3]} 7... Qxd6 {[%clk 0:02:28.6]} 8. O-O {[%clk 0:02:40.7]}
8... Nge7 {[%clk 0:02:27.6]} 9. e4 {[%clk 0:02:36.8]} 9... cxd4 {[%clk
0:02:20.1]} 10. Nxd4 {[%clk 0:02:00.6]} 10... Nxd4 {[%clk 0:02:19.2]} 11. Qxd4
{[%clk 0:01:56.7]} 11... e5 {[%clk 0:02:19.1]} 12. Qa4+ {[%clk 0:01:45.3]} 12...
Bd7 {[%clk 0:02:15.3]} 13. Qb3 {[%clk 0:01:44.8]} 13... d4 {[%clk 0:02:12.1]}
14. Nd5 {[%clk 0:01:43.3]} 14... Nxd5 {[%clk 0:02:07.2]} 15. exd5 {[%clk
0:01:41]} 15... O-O {[%clk 0:02:06.6]} 16. Rad1 {[%clk 0:01:34.4]} 16... Rac8
{[%clk 0:02:01.2]} 17. Rfe1 {[%clk 0:01:20]} 17... Rc5 {[%clk 0:01:57.8]} 18.
Qxb7 {[%clk 0:01:10.8]} 18... Rxc2 {[%clk 0:01:33.6]} 19. Qxa6 {[%clk
0:01:01.7]} 19... Qxa6 {[%clk 0:01:31.2]} 20. Bxa6 {[%clk 0:01:01.4]} 20... f6
{[%clk 0:01:30.4]} 21. Re2 {[%clk 0:00:48]} 21... Rxe2 {[%clk 0:01:14.8]} 22.
Bxe2 {[%clk 0:00:48.9]} 22... Kf7 {[%clk 0:01:15.2]} 23. f3 {[%clk 0:00:43.9]}
23... Ke7 {[%clk 0:01:15.2]} 24. Rc1 {[%clk 0:00:32.8]} 24... Kd6 {[%clk
0:01:15.1]} 25. Bc4 {[%clk 0:00:30.1]} 25... f5 {[%clk 0:01:03.1]} 26. Kf2
{[%clk 0:00:27.6]} 26... e4 {[%clk 0:01:02.8]} 27. Rd1 {[%clk 0:00:26.3]} 27...
Kc5 {[%clk 0:00:48.8]} 28. Bb3 {[%clk 0:00:26.4]} 28... Bb5 {[%clk 0:00:41.9]}
29. Rc1+ {[%clk 0:00:25.5]} 29... Kd6 {[%clk 0:00:42]} 30. a4 {[%clk 0:00:23.1]}
30... e3+ {[%clk 0:00:39.3]} 31. Ke1 {[%clk 0:00:19.6]} 31... d3 {[%clk
0:00:31.8]} 32. axb5 {[%clk 0:00:07.7]} 32... d2+ {[%clk 0:00:31.8]} 33. Kd1
{[%clk 0:00:08.6]} 33... dxc1=Q+ {[%clk 0:00:28.4]} 34. Kxc1 {[%clk 0:00:09.5]}
34... Kc5 {[%clk 0:00:21.7]} 35. Kd1 {[%clk 0:00:07.7]} 35... f4 {[%clk
0:00:20.4]} 36. Ke2 {[%clk 0:00:06.7]} 36... Kxb5 {[%clk 0:00:20.2]} 37. g3
{[%clk 0:00:07.1]} 37... g5 {[%clk 0:00:19.9]} 38. Bc2 {[%clk 0:00:07.1]} 38...
h6 {[%clk 0:00:19.5]} 39. h4 {[%clk 0:00:07.4]} 39... Kc5 {[%clk 0:00:19.6]} 40.
hxg5 {[%clk 0:00:07.6]} 40... hxg5 {[%clk 0:00:20.5]} 41. gxf4 {[%clk
0:00:08.1]} 41... gxf4 {[%clk 0:00:21.4]} 42. Be4 {[%clk 0:00:07.9]} 42... Rb8
{[%clk 0:00:21]} 43. Kd3 {[%clk 0:00:06.7]} 43... Rxb2 {[%clk 0:00:20.5]} 44.
Kc3 {[%clk 0:00:06.5]} 44... Rd2 {[%clk 0:00:20.7]} 45. Bd3 {[%clk 0:00:06.3]}
45... Kxd5 {[%clk 0:00:20.2]} 46. Bc4+ {[%clk 0:00:06.7]} 46... Ke5 {[%clk
0:00:21.1]} 47. Bf1 {[%clk 0:00:07.4]} 47... Kf6 {[%clk 0:00:21.6]} 48. Bh3
{[%clk 0:00:06.8]} 48... Kg5 {[%clk 0:00:22.5]} 49. Bf1 {[%clk 0:00:07.3]} 49...
Kh4 {[%clk 0:00:23.4]} 0-1

[Event "Early-Titled-Tuesday-Blitz-March-05-2024"]
[Site "Chess.com"]
[Date "2024.03.05"]
[Round "7"]
[White "SlavenPastar"]
[Black "enriquebutti"]
[Result "0-1"]
[WhiteElo "2602"]
[BlackElo "2231"]
[TimeControl "180+1"]
[EndTime "9:19:55 PST"]
[Termination "enriquebutti won by resignation"]

1. b3 {[%clk 0:03:00.9]} 1... e5 {[%clk 0:02:58.7]} 2. Bb2 {[%clk 0:03:00.8]}
2... d6 {[%clk 0:02:58.6]} 3. e3 {[%clk 0:03:00.6]} 3... Nf6 {[%clk 0:02:57.5]}
4. d4 {[%clk 0:03:00.8]} 4... e4 {[%clk 0:02:57.1]} 5. Ne2 {[%clk 0:03:00.4]}
5... d5 {[%clk 0:02:54.9]} 6. c4 {[%clk 0:03:00.6]} 6... c6 {[%clk 0:02:54.2]}
7. Nbc3 {[%clk 0:03:01.1]} 7... a6 {[%clk 0:02:51]} 8. Nf4 {[%clk 0:02:55.9]}
8... b5 {[%clk 0:02:47.4]} 9. cxd5 {[%clk 0:02:54.8]} 9... cxd5 {[%clk 0:02:47]}
10. a4 {[%clk 0:02:53]} 10... b4 {[%clk 0:02:46.6]} 11. Na2 {[%clk 0:02:51.6]}
11... Nc6 {[%clk 0:02:38.4]} 12. Rc1 {[%clk 0:02:50.2]} 12... Bb7 {[%clk
0:02:36.1]} 13. h4 {[%clk 0:02:44.4]} 13... h5 {[%clk 0:02:29.4]} 14. Be2 {[%clk
0:02:39.9]} 14... g6 {[%clk 0:02:28]} 15. g4 {[%clk 0:02:36.1]} 15... hxg4
{[%clk 0:02:27.4]} 16. Bxg4 {[%clk 0:02:37]} 16... Bd6 {[%clk 0:02:27.1]} 17.
Rc2 {[%clk 0:02:13.2]} 17... Bxf4 {[%clk 0:02:20.5]} 18. exf4 {[%clk 0:02:14.1]}
18... Qd6 {[%clk 0:02:15.5]} 19. Bc1 {[%clk 0:01:50.2]} 19... Bc8 {[%clk
0:02:04.1]} 20. Bxc8 {[%clk 0:01:45.9]} 20... Rxc8 {[%clk 0:02:03.3]} 21. Be3
{[%clk 0:01:42.3]} 21... O-O {[%clk 0:01:53.2]} 22. f5 {[%clk 0:01:40.2]} 22...
gxf5 {[%clk 0:01:47.8]} 23. Qd2 {[%clk 0:01:32.5]} 23... Ng4 {[%clk 0:01:38]}
24. Bf4 {[%clk 0:01:32.3]} 24... Qd7 {[%clk 0:01:29.6]} 25. h5 {[%clk
0:01:31.3]} 25... a5 {[%clk 0:01:26.4]} 26. Nc1 {[%clk 0:01:25.7]} 26... Ne7
{[%clk 0:01:23.4]} 27. Ne2 {[%clk 0:01:25.3]} 27... Rxc2 {[%clk 0:01:21]} 28.
Qxc2 {[%clk 0:01:26.2]} 28... Rc8 {[%clk 0:01:21.3]} 29. Qd2 {[%clk 0:01:26.8]}
29... Qc6 {[%clk 0:01:18.1]} 30. Bg5 {[%clk 0:01:18.7]} 30... f6 {[%clk
0:01:17.3]} 31. Be3 {[%clk 0:01:11]} 31... Qc2 {[%clk 0:01:16]} 32. Bf4 {[%clk
0:00:45.1]} 32... Qxb3 {[%clk 0:01:11.5]} 33. Bd6 {[%clk 0:00:42.9]} 33... Rc2
{[%clk 0:01:02.6]} 34. Qd1 {[%clk 0:00:33.9]} 34... Nc8 {[%clk 0:00:48.5]} 35.
Bc5 {[%clk 0:00:32.1]} 35... Qc4 {[%clk 0:00:45.2]} 36. h6 {[%clk 0:00:19.8]}
36... Kh7 {[%clk 0:00:44.5]} 37. Rh5 {[%clk 0:00:17.7]} 37... b3 {[%clk
0:00:41.8]} 38. Rxf5 {[%clk 0:00:10]} 38... b2 {[%clk 0:00:40.1]} 39. Rxd5
{[%clk 0:00:10.4]} 39... Rc1 {[%clk 0:00:35.7]} 40. Rd7+ {[%clk 0:00:09.8]}
40... Kxh6 {[%clk 0:00:35.1]} 41. Bf8+ {[%clk 0:00:09.4]} 41... Kg6 {[%clk
0:00:34.7]} 42. Rg7+ {[%clk 0:00:09.3]} 42... Kf5 {[%clk 0:00:32.4]} 43. Ng3+
{[%clk 0:00:04.4]} 43... Ke6 {[%clk 0:00:30.9]} 44. d5+ {[%clk 0:00:04.2]} 44...
Qxd5 {[%clk 0:00:28.5]} 45. Re7+ {[%clk 0:00:04.9]} 45... Nxe7 {[%clk 0:00:26]}
0-1